[Event "12th WLC Weekend 2022"]
[Site "Eindhoven"]
[Date "2022.05.14"]
[Round "3.4"]
[White "Slagboom, Leandro"]
[Black "Elgersma, Onno"]
[Result "0-1"]
[ECO "C01"]
[WhiteElo "1997"]
[BlackElo "2303"]
[Annotator "TA"]
[PlyCount "116"]
[EventDate "2022.05.13"]
[EventType "swiss"]
[EventCountry "NED"]
[SourceTitle "playchess.com"]
[Source "ChessBase"]
[SourceQuality "1"]
[TimeControl "5400+30"]

{[%evp 14,116,41,34,45,36,33,23,40,51,46,0,43,11,39,27,33,39,74,68,81,81,84,82,103,96,117,81,84,80,95,85,90,80,110,110,115,116,114,116,123,128,154,147,213,204,243,97,85,87,79,68,99,68,36,39,41,40,87,87,95,104,123,125,112,110,121,106,106,106,106,106,124,124,124,124,124,124,124,124,124,20,20,20,20,23,17,16,16,18,30,0,0,-337,-338,-778,-741,-2084,-1943,-29991,100,-29992,-29993,-29994,-29995]} 1. e4 {[%emt 0:00:03]} c6 {[%emt 0:00:24]} 2. d4 {[%emt 0:00:57]} d5 {[%emt 0:00:05]} 3. f3 {[%emt 0:00:30]} Nf6 {[%emt 0:03:17]} 4. e5 {[%emt 0:00:49]} Nfd7 {[%emt 0:02:05]} 5. f4 {[%emt 0:01:55]} e6 {[%emt 0:02:31]} 6. Nf3 {[%emt 0:00:54]} c5 {[%emt 0:00:10]} 7. c3 {[%emt 0:02:07]} Nc6 {[%emt 0:00:20]} 8. Be3 {[%emt 0:02:33]} Qb6 {[%emt 0:02:00] C01: French: Exchange Variation.} 9. Qd2 {[%emt 0:00:57]} Be7 {[%emt 0:08:36]} 10. Bd3 {[%emt 0:02:00]} O-O {[%emt 0:04:02] White has an edge.} 11. O-O {[%emt 0:03:57]} f6 {[%emt 0:01:45][%cal Bf7f6,Bf6f5][%mdl 32]} 12. Qc2 {[%emt 0:12:56]} (12. b3 $14) 12... f5 {[%emt 0:08:01][%cal Og7g5] [#]} 13. a3 $146 {[%emt 0:11:12]} ({Predecessor:} 13. Nbd2 a5 14. Rae1 a4 15. Ng5 cxd4 16. cxd4 Nb4 17. Qb1 Nxd3 18. Qxd3 h6 19. Qe2 hxg5 20. fxg5 {½-½ (43) Larter,N-Biancalana,F Caerleon 2007}) 13... c4 {[%emt 0:04:48]} (13... g5 $5) 14. Be2 {[%emt 0:00:07]} Na5 {[%emt 0:00:04]} 15. Nbd2 {[%emt 0:03:42]} Qd8 {[%emt 0:01:08]} 16. g4 {[%emt 0:03:30]} Nb6 {[%emt 0:02:35]} 17. gxf5 {[%emt 0:01:46]} exf5 {[%emt 0:03:51]} 18. Kh1 {[%emt 0:06:03]} Qe8 {[%emt 0:05:16]} 19. Rae1 {[%emt 0:01:50]} Be6 {[%emt 0:06:40]} 20. Bd1 {[%emt 0:03:05]} (20. Rg1 {feels hotter.} Rc8 21. Rg3 Bd8 22. Reg1) 20... Bd7 {[%emt 0:04:41]} 21. Qb1 {[%emt 0:01:45]} Rc8 {[%emt 0:07:16]} 22. Bf2 {[%emt 0:04:34]} Ba4 {[%emt 0:03:25]} 23. Be2 {[%emt 0:03:22]} Rc6 {[%emt 0:00:53]} 24. Rg1 {[%emt 0:00:59]} Rg6 {[%emt 0:02:26]} 25. Bg3 {[%emt 0:02:33]} Rh6 {[%emt 0:01:21]} 26. Nf1 {[%emt 0:01:07]} Bd7 {[%emt 0:07:51]} 27. Ne3 {[%emt 0:01:00]} Be6 {[%emt 0:00:33]} 28. Ng5 {[%emt 0:04:51]} Bxg5 {[%emt 0:03:40]} (28... Qd7 $16 29. h4 Kh8) 29. fxg5 $18 {[%emt 0:00:06]} Rh3 {[%emt 0:02:12] White must now prevent ...f4.} 30. Bf4 {[%emt 0:05:58]} (30. Ng2 $18) 30... Rxe3 $16 {[%emt 0:01:17]} 31. Bxe3 {[%emt 0:00:10]} f4 {[%emt 0:01:29]} 32. Bf2 {[%emt 0:00:53]} Nb3 {[%emt 0:04:12]} 33. Bf3 {[%emt 0:08:56]} Nd2 {[%emt 0:00:19][%csl LRb1,LRf3]} 34. Qd1 {[%emt 0:00:13]} Nxf3 {[%emt 0:00:35]} 35. Qxf3 {[%emt 0:00:02][%cal Og5g6]} Na4 {[%emt 0:00:35]} (35... Bf5 $14) 36. Re2 {[%emt 0:00:38][%cal Og5g6,Be1e2,Be2d2,Bd2f2][%mdl 32]} Qg6 {[%emt 0:00:20]} 37. h4 {[%emt 0:01:10]} Qd3 {[%emt 0:02:11]} 38. Qxd3 {[%emt 0:01:04]} cxd3 {[%emt 0:00:01]} 39. Rd2 {[%emt 0:00:30]} Bf5 {[%emt 0:00:10]} 40. Rc1 {[%emt 0:01:13]} b5 {[%emt 0:00:09]} 41. Be1 {[%emt 0:02:58]} Nb6 {[%emt 0:01:45]} 42. b3 {[%emt 0:00:15]} Kf7 {[%emt 0:01:18]} 43. Rf2 {[%emt 0:00:43]} Be4+ {[%emt 0:00:09]} 44. Kh2 {[%emt 0:00:14]} Ke6 {[%emt 0:00:42]} 45. Bd2 {[%emt 0:00:21]} f3 {[%emt 0:00:13]} 46. Kg3 {[%emt 0:00:56]} a5 {[%emt 0:01:12]} 47. c4 {[%emt 0:02:02]} (47. Re1 $16) 47... dxc4 $11 {[%emt 0:00:56]} 48. Bxa5 {[%emt 0:00:18]} Nd5 {[%emt 0:00:21] ...Rc8 is the strong threat.} 49. bxc4 {[%emt 0:00:30]} bxc4 {[%emt 0:00:06]} 50. Rxc4 {[%emt 0:00:34] Strongly threatening Rc6+.} Nf4 {[%emt 0:01:34] Threatens to win with ...Ne2+.} 51. Bd2 {[%emt 0:01:26]} Ne2+ {[%emt 0:00:26]} 52. Kg4 {[%emt 0:01:40]} h5+ {[%emt 0:01:19]} 53. gxh6 $2 {[%emt 0:02:14][%mdl 8192]} (53. Kh3 $1 $11) 53... gxh6 $19 {[%emt 0:00:50]} 54. Rb4 $2 {[%emt 0:00:43]} (54. Bxh6 Rg8+ 55. Bg5 (55. Kh3 $2 Rg2 $19)) 54... Rg8+ {[%emt 0:01:26]} 55. Kh3 {[%emt 0:00:25]} Kf5 {[%emt 0:01:13] ( -> ...Rg3+)} 56. Rb6 {[%emt 0:00:43] [#]} Rg3+ $1 {[%emt 0:00:26]} 57. Kh2 {[%emt 0:00:05][%cal Of2e2] [#] And now Rxe2! would win.} Kg4 $1 {[%emt 0:00:21][%csl Gg4][%cal Rg3h3]} 58. Rxf3 {[%emt 0:00:55]} Rxf3 {[%emt 0:00:34] Never resign too early!  Weighted Error Value: White=0.53/Black=0.09 (flawless)} 0-1

[Event "12th WLC Weekend 2022"]
[Site "Eindhoven"]
[Date "2022.05.14"]
[Round "3.5"]
[White "Margarido, Jose Miguel Teixeira"]
[Black "Baselmans, Sam"]
[Result "0-1"]
[ECO "E94"]
[WhiteElo "2127"]
[BlackElo "2175"]
[Annotator "TA"]
[PlyCount "106"]
[EventDate "2022.05.13"]
[EventType "swiss"]
[EventCountry "NED"]
[SourceTitle "playchess.com"]
[Source "ChessBase"]
[SourceQuality "1"]
[TimeControl "5400+30"]

{[%evp 22,106,51,29,85,81,98,84,81,77,93,79,75,34,135,120,110,27,38,-23,47,20,29,27,26,29,22,29,35,16,39,14,22,12,47,15,16,7,0,0,0,-11,-7,-70,0,0,18,0,16,27,37,36,49,34,26,11,23,31,31,0,79,19,12,16,6,0,0,-22,0,-29,0,21,48,30,32,25,32,31,96,107,93,1,8,-37,-27,-29998,-29999]} 1. d4 {[%emt 0:05:25]} Nf6 {[%emt 0:00:39]} 2. c4 {[%emt 0:00:14]} g6 {[%emt 0:00:11]} 3. Nc3 {[%emt 0:00:16]} Bg7 {[%emt 0:00:07]} 4. e4 {[%emt 0:00:14]} d6 {[%emt 0:00:32]} 5. Nf3 {[%emt 0:00:23]} O-O {[%emt 0:00:08]} 6. Be2 {[%emt 0:00:15]} Na6 {[%emt 0:00:15]} 7. O-O {[%emt 0:02:12]} e5 {[%emt 0:00:16]} 8. Be3 {[%emt 0:00:14]} Ng4 {[%emt 0:00:06]} 9. Bg5 {[%emt 0:00:06]} Qe8 {[%emt 0:00:07]} 10. dxe5 {[%emt 0:02:02]} Nxe5 {[%emt 0:01:28]} 11. Nd4 {[%emt 0:00:46]} Nc6 {[%emt 0:16:25]} 12. Ndb5 {[%emt 0:06:12]} f6 {[%emt 0:00:57] E94: King's Indian: Classical: 6 Be2 e5 7 0-0: Various Black 7th moves.} (12... f5 $11 {keeps the balance.}) 13. Be3 $16 {[%emt 0:01:42]} Be6 {[%emt 0:01:09] [#]} 14. Rc1 $146 {[%emt 0:11:11]} ({Predecessor:} 14. Qd2 Qf7 15. b3 Nc5 16. f4 f5 17. e5 Rad8 18. exd6 Bxc3 19. Nxc3 Rxd6 20. Qb2 {1-0 (48) Coppola,C (2248)-Avedisian,A (1935) Punta del Este 2021}) 14... Qd7 {[%emt 0:05:11] White is better.} 15. b3 {[%emt 0:05:19]} Rae8 {[%emt 0:04:59]} 16. Qd2 {[%emt 0:01:30]} ({Much worse is} 16. Nxa7 $6 Nxa7 17. Bxa7 b6 $11) ({And not} 16. Bxa7 b6 $17) 16... f5 {[%emt 0:01:45]} 17. Rfe1 {[%emt 0:07:53]} Qf7 {[%emt 0:05:16]} (17... Nc5 $14) 18. exf5 $1 {[%emt 0:00:24]} Bxf5 {[%emt 0:01:02]} 19. Nd4 {[%emt 0:20:14]} (19. Nd5 $16) 19... Nc5 {[%emt 0:12:55]} 20. Rcd1 {[%emt 0:11:33]} (20. Nxc6 $14 bxc6 21. Bf3) 20... Kh8 {[%emt 0:03:30]} (20... Nxd4 $11 21. Bxd4 Bd3 $1 22. Bxc5 Bxc3 23. Qxc3 Bxe2) 21. Nxf5 {[%emt 0:04:41]} Qxf5 {[%emt 0:01:38]} 22. Nd5 {[%emt 0:08:33]} Ne6 {[%emt 0:02:53]} 23. Bd3 {[%emt 0:04:47]} Qf7 {[%emt 0:00:45]} 24. f3 {[%emt 0:01:10]} a6 {[%emt 0:04:30]} 25. Bf1 {[%emt 0:02:56]} Ned4 {[%emt 0:01:17]} 26. Bh6 {[%emt 0:00:48]} Bxh6 {[%emt 0:07:01]} 27. Qxh6 {[%emt 0:00:01]} Nf5 {[%emt 0:00:20] Pair of Knights!} 28. Qf4 {[%emt 0:00:51] And now Rxe8 would win.} Ne5 {[%emt 0:00:28]} 29. Qd2 {[%emt 0:00:43]} Nh4 {[%emt 0:02:00]} 30. Qc3 {[%emt 0:00:52]} c6 {[%emt 0:02:25]} 31. Ne3 {[%emt 0:01:29][%cal Bd5e3,Be3f1,Bf1d2,Bd2e4,Be4c3][%mdl 32]} Kg8 {[%emt 0:00:59]} 32. Be2 {[%emt 0:00:37]} ({White should play} 32. Kh1 $11) 32... Qf4 {[%emt 0:01:56] Black is more active.} (32... Qf6 $1 $15 33. Qd2 Qg5) 33. Nf1 $1 $11 {[%emt 0:00:14]} h5 {[%emt 0:02:17]} 34. Qd2 {[%emt 0:00:21]} Qxd2 {[%emt 0:04:26]} 35. Nxd2 {[%emt 0:00:01]} Nf5 {[%emt 0:03:06]} 36. Ne4 {[%emt 0:00:14]} Rd8 {[%emt 0:00:40][%cal Be8d8,Bd8f8,Bf8f6][%mdl 32]} 37. Rd2 {[%emt 0:01:07]} Kg7 {[%emt 0:02:24]} 38. Nc3 {[%emt 0:01:05]} Rfe8 {[%emt 0:00:59]} 39. Kf2 {[%emt 0:00:24]} Re7 {[%emt 0:00:58]} 40. Bd3 {[%emt 0:00:52]} Nh4 {[%emt 0:01:35]} (40... Nxd3+ $11 41. Rxd3 Rxe1 42. Kxe1 b5) 41. Re3 {[%emt 0:00:36]} ({Better is} 41. Be4 $16) 41... Rf8 {[%emt 0:00:42] Strongly threatening ...Ng4+.} 42. Kg3 {[%emt 0:00:27] Against Ng4} g5 {[%emt 0:00:38]} 43. Bc2 {[%emt 0:00:27]} Rf6 {[%emt 0:00:32]} 44. Be4 {[%emt 0:00:36]} Ref7 {[%emt 0:01:25]} 45. Rd1 {[%emt 0:00:28]} Rf8 {[%emt 0:02:53]} (45... b5 $142 46. cxb5 axb5) 46. h3 {[%emt 0:00:31]} ({But not} 46. Kh3 b5 $15) 46... Re8 {[%emt 0:00:43][%cal Bf8e8,Be8e5,Be5g5][%mdl 32]} 47. Re2 {[%emt 0:00:28]} Nf7 {[%emt 0:01:17]} 48. Red2 {[%emt 0:00:26]} Re5 {[%emt 0:01:13]} 49. Kf2 {[%emt 0:00:36]} g4 {[%emt 0:01:09]} (49... Nf5 $14) 50. hxg4 $16 {[%emt 0:00:18]} hxg4 {[%emt 0:00:06] [#]} 51. Kg3 {[%emt 0:00:30]} (51. f4 $1 $16) 51... gxf3 $11 {[%emt 0:00:26]} 52. gxf3 {[%emt 0:00:27]} (52. Kxh4 $5 {[%cal Re4f3]} Rg5 53. g4 $16) 52... Nxf3 {[%emt 0:02:09]} 53. Rf2 {[%emt 0:00:45][%mdl 8192]} (53. Bxf3 $11 Re3 54. Ne4 Rfxf3+ 55. Kg2) 53... Rg5+ {[%emt 0:01:29] Weighted Error Value: White=0.35/Black=0.22 (precise)} 0-1

[Event "12th WLC Weekend 2022"]
[Site "Eindhoven"]
[Date "2022.05.14"]
[Round "3.6"]
[White "Iolis, Oleg"]
[Black "Verhoeven, Robin"]
[Result "0-1"]
[ECO "B01"]
[WhiteElo "2201"]
[BlackElo "1946"]
[Annotator "TA"]
[PlyCount "98"]
[EventDate "2022.05.13"]
[EventType "swiss"]
[EventCountry "NED"]
[SourceTitle "playchess.com"]
[Source "ChessBase"]
[SourceQuality "1"]
[TimeControl "5400+30"]

{[%evp 9,98,56,87,68,62,60,97,101,98,93,92,85,103,85,187,219,237,242,335,333,330,306,311,292,325,275,571,558,531,323,310,318,323,333,318,227,256,115,107,95,92,-7,60,0,0,0,0,-179,-160,-181,-156,-156,-166,-162,-176,-179,-135,-143,-164,-224,-229,-619,-611,-657,-629,-553,-161,-611,-590,-551,-532,-479,-228,-235,-110,-226,-218,-1135,-1046,-6472,-6472,-6404,-6398,-6103,-6103,-6070,-6070,-6070,-6070,-5302,-5273]} 1. e4 {[%emt 0:00:02]} d5 {[%emt 0:00:13]} 2. exd5 {[%emt 0:00:04]} Nf6 {[%emt 0:00:03]} 3. Nf3 {[%emt 0:00:08]} Bg4 {[%emt 0:00:06]} 4. Bb5+ {[%emt 0:06:37]} Nbd7 {[%emt 0:01:03]} 5. h3 {[%emt 0:01:48]} a6 {[%emt 0:01:59]} 6. Bxd7+ {[%emt 0:03:35] B01: Scandinavian Defence.} Bxd7 {[%emt 0:00:07]} 7. c4 {[%emt 0:00:06] [#]} c6 $146 {[%emt 0:02:55]} ({Predecessor:} 7... b5 8. d3 e6 9. Qe2 Be7 10. dxe6 Bxe6 11. O-O O-O 12. Nc3 Rb8 13. Bf4 Nh5 {½-½ (31) Posada,J (2153)-Lopez Gonzalez,A (2351) Medellin 2017}) 8. dxc6 {[%emt 0:00:17] White is better.} Bxc6 {[%emt 0:00:05]} 9. O-O {[%emt 0:00:19]} e6 {[%emt 0:01:43]} 10. Nc3 {[%emt 0:01:14]} Qc7 {[%emt 0:05:20]} 11. d4 {[%emt 0:01:30][%cal Bd2d4,Bd4d5][%mdl 32]} O-O-O {[%emt 0:02:25]} (11... Be7 $16) 12. Ne5 $18 {[%emt 0:03:30]} Be8 {[%emt 0:02:14]} 13. Bf4 {[%emt 0:01:43][%cal Oe5g6,Bc1f4,Bf4h2,Bh2e5][%mdl 32]} Rg8 {[%emt 0:06:51]} 14. Rc1 {[%emt 0:03:24]} Bc5 {[%emt 0:11:06]} 15. d5 {[%emt 0:03:24]} Qe7 {[%emt 0:19:47]} 16. a3 {[%emt 0:17:50]} g5 {[%emt 0:04:38]} 17. Bh2 {[%emt 0:01:24]} h5 $2 {[%emt 0:05:45]} (17... Bd6 18. Re1 h5) 18. b4 {[%emt 0:00:10]} Bd6 {[%emt 0:00:29]} 19. c5 {[%emt 0:01:49]} Bxe5 {[%emt 0:00:31]} 20. Bxe5 {[%emt 0:00:07]} Nxd5 {[%emt 0:00:31]} 21. Ne4 {[%emt 0:03:22]} (21. Qxh5 Nxc3 22. Rxc3 f5 $16) 21... Bc6 {[%emt 0:04:22]} 22. Nd6+ {[%emt 0:08:29]} (22. Qxh5 Nf4 23. Qh7 (23. Qf3 $2 Rd3 $19) 23... Ne2+ 24. Kh2 Bxe4 25. Qxe4 Nxc1 26. Rxc1 f6 $11) 22... Kd7 {[%emt 0:00:06]} 23. Qxh5 {[%emt 0:00:39]} (23. a4 $18 {Hoping for b5.} Nxb4 24. Nxf7+ (24. Qxh5 f6 $16) 24... Nd5 25. Nxd8 Kxd8 26. Qxh5) 23... g4 {[%emt 0:03:44] Strongly threatening ...Rg5.} 24. Rfe1 {[%emt 0:12:42]} (24. Nxf7 Rdf8 25. hxg4 (25. Nd6 $2 gxh3 26. Qxh3 Nf4 $19) 25... Rxf7 $17) 24... Rg5 {[%emt 0:04:57]} 25. Qh7 {[%emt 0:13:18]} (25. Qxf7 $16 {Threatens to win with h4.} gxh3 26. Bg3) 25... gxh3 {[%emt 0:03:07]} (25... f6 $11 26. Qxe7+ Kxe7) 26. Qxh3 {[%emt 0:00:09]} (26. Bg3 $1 $14 Rdg8 27. Rc4 (27. gxh3 $2 Rxg3+ 28. fxg3 Rxg3+ 29. Kh2 Rg2+ 30. Kxg2 Nf6+ 31. Kf1 Nxh7 $19) (27. Qxf7 hxg2 28. Rc4 Rh8 $17) (27. Qxh3 f5 $11) (27. Nxf7 $2 R8g7 $19) 27... hxg2 28. Bh4) 26... Rdg8 $11 {[%emt 0:03:16]} 27. Bg3 {[%emt 0:03:19]} f5 $1 {[%emt 0:08:16][%cal Bf7f5,Bf5f4][%mdl 32] ...f4 is the strong threat.} 28. Rcd1 $2 {[%emt 0:02:45]} (28. Kf1 $1 $11 {and White is okay.}) 28... f4 $19 {[%emt 0:01:16]} 29. Ne4 {[%emt 0:00:54]} fxg3 {[%emt 0:00:49]} 30. Nxg5 {[%emt 0:00:18]} gxf2+ {[%emt 0:00:15]} 31. Kxf2 {[%emt 0:00:06]} Rxg5 {[%emt 0:00:18]} 32. Re4 {[%emt 0:02:31]} Qf6+ {[%emt 0:00:59]} (32... Ba4 33. Rd2 $15) 33. Kg1 {[%emt 0:00:09]} Ke7 {[%emt 0:03:44] Dancing on a razor blade.} 34. Rf1 {[%emt 0:01:43]} (34. Qh2 $142) 34... Qg6 {[%emt 0:00:30]} 35. Rh4 {[%emt 0:01:17]} ({Don't blunder} 35. Qf3 $2 Nf6 36. Qxf6+ Qxf6 $19) (35. Qh2 Rxg2+ 36. Qxg2 Qxg2+ 37. Kxg2) 35... Nf6 {[%emt 0:02:28][%cal Rg5g2]} 36. Rf2 {[%emt 0:01:01]} Rg3 {[%emt 0:00:42]} 37. Qh2 {[%emt 0:00:23]} Qg5 {[%emt 0:01:25]} (37... Qd3 38. Rhf4 Qb1+ 39. Rf1 $17) (37... Qb1+ 38. Rf1 Qd3) 38. Kh1 $2 {[%emt 0:04:02]} (38. Rh3 Qc1+ 39. Rf1 Qe3+ 40. Rf2 Qe1+ 41. Rf1 Rxg2+ 42. Qxg2 Bxg2 43. Rxe1 Bxh3 44. Kf2) 38... Qc1+ {[%emt 0:00:44]} 39. Qg1 {[%emt 0:00:06]} Qe3 {[%emt 0:00:26] aiming for ...Rh3+.} 40. Qf1 {[%emt 0:01:35] [#]} Rh3+ $40 {[%emt 0:00:30][%mdl 128] Black has strong attack.} (40... Rg7 $142 $1 41. Re2 (41. Ra2 Bd5) 41... Qg5) 41. Rxh3 {[%emt 0:00:04]} Qxh3+ {[%emt 0:00:06]} 42. Kg1 {[%emt 0:00:00] [#]} Qe3 {[%emt 0:00:18]} ({Weaker is} 42... Qh4 43. Qd3 $15) 43. Kh1 $2 {[%emt 0:01:56]} (43. Qe2 Qxe2 44. Rxe2) 43... Bb5 {[%emt 0:00:24] Black is clearly winning.} ({Inferior is} 43... Qh6+ 44. Kg1 $17) 44. Qg1 {[%emt 0:00:52]} Ng4 {[%emt 0:00:22] ( -> ...Qh6+)} 45. Rf3 {[%emt 0:00:23]} Qh6+ {[%emt 0:01:09]} 46. Rh3 {[%emt 0:00:05] [#]} Qxh3+ $3 {[%emt 0:00:37][%mdl 512]} 47. gxh3 {[%emt 0:00:09]} Bc6+ {[%emt 0:00:02]} 48. Qg2 {[%emt 0:00:27]} Bxg2+ {[%emt 0:00:07]} 49. Kxg2 {[%emt 0:00:04]} Ne3+ {[%emt 0:00:06] What a bad dream for White.  Weighted Error Value: White=0.75/Black=0.32} 0-1

[Event "12th WLC Weekend 2022"]
[Site "Eindhoven"]
[Date "2022.05.14"]
[Round "3.7"]
[White "Bruil, Rembrandt"]
[Black "Grooten, Tommy"]
[Result "1-0"]
[ECO "E73"]
[WhiteElo "2122"]
[BlackElo "1847"]
[Annotator "TA"]
[PlyCount "69"]
[EventDate "2022.05.13"]
[EventType "swiss"]
[EventCountry "NED"]
[SourceTitle "playchess.com"]
[Source "ChessBase"]
[SourceQuality "1"]
[TimeControl "5400+30"]

{[%evp 16,69,77,68,72,70,90,83,107,106,121,110,125,119,126,132,143,143,246,243,249,220,235,235,234,220,579,552,660,657,649,649,769,723,715,711,1038,1029,1132,1102,1040,984,1260,1258,1216,1228,2045,1931,1993,2000,29985,29986,29989,29990,29991,29992]} 1. d4 {[%emt 0:00:03]} Nf6 {[%emt 0:00:08]} 2. c4 {[%emt 0:00:18]} d6 {[%emt 0:00:27]} 3. Nc3 {[%emt 0:00:10]} g6 {[%emt 0:00:05]} 4. e4 {[%emt 0:00:05]} Bg7 {[%emt 0:00:17]} 5. Be2 {[%emt 0:00:07]} O-O {[%emt 0:00:13]} 6. Bg5 {[%emt 0:00:04]} h6 {[%emt 0:00:49]} 7. Be3 {[%emt 0:00:05]} e5 {[%emt 0:00:08]} 8. d5 {[%emt 0:00:11]} a5 {[%emt 0:00:21] Recently 8...Na6 got a lot of attention.} 9. h4 {[%emt 0:02:03][%cal Bh2h4,Bh4h5][%mdl 32]} Na6 {[%emt 0:01:52] E73: King's Indian: Averbakh Variation without 6...c5.} 10. h5 {[%emt 0:01:30]} g5 {[%emt 0:00:11]} 11. g4 {[%emt 0:00:12]} Nd7 {[%emt 0:00:16] White is better.} 12. f3 {[%emt 0:00:59] White is more active.} Nac5 {[%emt 0:00:30] [#]} 13. b3 $146 {[%emt 0:00:43]} ({Predecessor:} 13. Nh3 Bf6 14. O-O Na6 15. a3 Rb8 16. Qc2 Ndc5 17. Rfb1 b6 18. b4 Nb7 19. c5 Naxc5 20. bxc5 dxc5 {1-0 (59) Toefferl,H (2025)-Ehs,C (1984) St Johann im Pongau 2016}) 13... Re8 {[%emt 0:00:31]} 14. Nh3 {[%emt 0:00:15][%cal Bg1h3,Bh3f2,Bf2e4][%mdl 32]} Bf8 {[%emt 0:00:08]} 15. O-O {[%emt 0:00:22]} b6 {[%emt 0:00:29]} 16. Nf2 {[%emt 0:00:22]} f5 {[%emt 0:00:32]} (16... Nf6 $16 17. Kg2 Bg7) 17. exf5 $18 {[%emt 0:00:50]} ({Don't take} 17. gxf5 $6 Nf6 $16) 17... Bg7 {[%emt 0:00:27]} 18. Nfe4 {[%emt 0:00:54]} Nf6 {[%emt 0:01:05]} 19. Bd3 {[%emt 0:17:35]} Ba6 {[%emt 0:00:55]} 20. a3 {[%emt 0:04:07]} c6 $2 {[%emt 0:00:18]} (20... Ncxe4 {is a better chance.} 21. Bxe4 (21. fxe4 Qe7 $16) (21. Nxe4 Qe7 $16) 21... Nxe4 22. Nxe4 a4) 21. dxc6 {[%emt 0:08:38]} Qc7 {[%emt 0:02:00]} 22. Nxf6+ {[%emt 0:04:11]} Bxf6 {[%emt 0:00:20]} 23. Be4 {[%emt 0:00:05]} Bg7 {[%emt 0:00:47]} 24. b4 {[%emt 0:09:25][%cal Bb3b4,Bb4b5][%mdl 32]} Nxe4 {[%emt 0:02:36]} 25. Qd5+ {[%emt 0:00:05][%mdl 64] [#] Zwischenzug, Double Attack} Kh8 {[%emt 0:00:34]} 26. Nxe4 {[%emt 0:08:08][%cal Bc3e4,Be4d6,Bd6f7][%mdl 32]} Rad8 {[%emt 0:00:48]} 27. b5 {[%emt 0:00:23]} Bc8 {[%emt 0:00:13]} 28. Rad1 {[%emt 0:00:15]} a4 {[%emt 0:00:31]} 29. Nxd6 {[%emt 0:01:10]} e4 {[%emt 0:00:16]} 30. f4 {[%emt 0:01:04]} Rf8 {[%emt 0:00:39] [#]} 31. Nf7+ $1 {[%emt 0:01:46][%mdl 512]} Kh7 {[%emt 0:00:19]} (31... Rxf7 32. Qxd8+) 32. Nxd8 {[%emt 0:00:06]} Bxf5 {[%emt 0:00:36]} 33. gxf5 {[%emt 0:01:00] White mates.} Qe7 {[%emt 0:00:32]} 34. Qd6 {[%emt 0:00:28]} Qe8 {[%emt 0:00:34]} 35. Qg6+ {[%emt 0:00:05] Black did not feel at home in the position after the opening.  Weighted Error Value: White=0.03 (flawless) /Black=0.54} 1-0